[Event "NK ABC Kwalificatie 2"]
[Site "Zoetermeer, Netherlands"]
[Date "2025.01.04"]
[Round "3.6"]
[White "Teianu, Maxim"]
[Black "Zhu, Chenwu"]
[Result "0-1"]
[TimeControl "55+10"]
[WhiteFideId "8926093"]
[BlackFideId "8733846"]
[WhiteElo "2026"]
[BlackElo "2177"]

1. d4 {[%clk 00:55:18]} {[%emt 00:00:01]} d5 {[%clk 00:55:15]} {[%emt
00:00:05]} 2. c4 {[%clk 00:55:25]} {[%emt 00:00:04]} e6 {[%clk 00:55:22]}
{[%emt 00:00:03]} 3. Nf3 {[%clk 00:55:30]} {[%emt 00:00:04]} Nf6 {[%clk
00:55:27]} {[%emt 00:00:05]} 4. Nc3 {[%clk 00:55:37]} {[%emt 00:00:04]} c5
{[%clk 00:55:33]} {[%emt 00:00:04]} 5. cxd5 {[%clk 00:55:28]} {[%emt 00:00:19]}
Nxd5 {[%clk 00:55:39]} {[%emt 00:00:04]} 6. e4 {[%clk 00:55:33]} {[%emt
00:00:05]} Nxc3 {[%clk 00:55:46]} {[%emt 00:00:03]} 7. bxc3 {[%clk 00:55:34]}
{[%emt 00:00:09]} cxd4 {[%clk 00:55:52]} {[%emt 00:00:04]} 8. cxd4 {[%clk
00:55:38]} {[%emt 00:00:06]} Bb4+ {[%clk 00:55:59]} {[%emt 00:00:03]} 9. Bd2
{[%clk 00:55:40]} {[%emt 00:00:08]} Bxd2+ {[%clk 00:56:05]} {[%emt 00:00:04]}
10. Qxd2 {[%clk 00:55:45]} {[%emt 00:00:05]} O-O {[%clk 00:56:10]} {[%emt
00:00:04]} 11. Bc4 {[%clk 00:55:50]} {[%emt 00:00:06]} Nd7 {[%clk 00:55:44]}
{[%emt 00:00:36]} 12. O-O {[%clk 00:55:46]} {[%emt 00:00:13]} b6 {[%clk
00:55:41]} {[%emt 00:00:13]} 13. Rad1 {[%clk 00:55:47]} {[%emt 00:00:09]} Bb7
{[%clk 00:55:41]} {[%emt 00:00:10]} 14. Rfe1 {[%clk 00:55:54]} {[%emt
00:00:04]} Rc8 {[%clk 00:55:42]} {[%emt 00:00:09]} 15. Bb3 {[%clk 00:54:26]}
{[%emt 00:01:38]} Re8 {[%clk 00:54:59]} {[%emt 00:00:52]} 16. h3 {[%clk
00:53:11]} {[%emt 00:01:26]} h6 {[%emt 00:03:07]} 17. Re3 {[%clk 00:51:44]} Qf6
{[%clk 00:49:56]} {[%emt 00:03:52]} 18. Nh2 {[%clk 00:47:59]} {[%emt 00:03:55]}
Qf4 {[%clk 00:46:16]} {[%emt 00:03:50]} 19. Ree1 {[%clk 00:46:51]} {[%emt
00:01:18]} Qxd2 {[%clk 00:46:15]} {[%emt 00:00:11]} 20. Rxd2 {[%clk 00:46:57]}
{[%emt 00:00:04]} b5 {[%clk 00:45:22]} {[%emt 00:01:03]} 21. Nf1 {[%clk
00:44:27]} {[%emt 00:02:40]} a5 {[%clk 00:42:22]} {[%emt 00:03:10]} 22. Ng3
{[%clk 00:43:44]} {[%emt 00:00:53]} Nb6 {[%clk 00:41:02]} {[%emt 00:01:29]} 23.
a3 {[%clk 00:32:45]} {[%emt 00:11:10]} Rc3 {[%clk 00:36:59]} {[%emt 00:04:12]}
24. Re3 {[%clk 00:32:49]} {[%emt 00:00:07]} Rxe3 {[%clk 00:36:20]} {[%emt
00:00:49]} 25. fxe3 {[%clk 00:32:54]} {[%emt 00:00:05]} Rc8 {[%clk 00:34:55]}
{[%emt 00:01:35]} 26. d5 {[%clk 00:29:57]} {[%emt 00:03:07]} Rd8 {[%clk
00:32:17]} {[%emt 00:02:49]} 27. Ne2 {[%clk 00:28:38]} {[%emt 00:01:29]} e5
{[%clk 00:29:08]} {[%emt 00:03:19]} 28. Rc2 {[%clk 00:23:14]} {[%emt 00:05:34]}
Rc8 {[%clk 00:28:16]} {[%emt 00:01:02]} 29. Rxc8+ {[%clk 00:23:12]} {[%emt
00:00:12]} Nxc8 {[%clk 00:27:21]} {[%emt 00:01:04]} 30. Nc1 {[%clk 00:23:12]}
{[%emt 00:00:10]} Nd6 {[%clk 00:24:37]} {[%emt 00:02:55]} 31. Nd3 {[%clk
00:22:51]} {[%emt 00:00:31]} f6 {[%clk 00:23:41]} {[%emt 00:01:06]} 32. Nc5
{[%clk 00:22:33]} {[%emt 00:00:27]} Kf7 {[%clk 00:21:50]} {[%emt 00:02:02]} 33.
Kf2 {[%clk 00:20:22]} {[%emt 00:02:21]} Ke7 {[%clk 00:20:38]} {[%emt 00:01:22]}
34. Ke2 {[%clk 00:18:35]} {[%emt 00:01:57]} Bc8 {[%clk 00:20:27]} {[%emt
00:00:21]} 35. Kd3 {[%clk 00:18:06]} {[%emt 00:00:40]} Nb7 {[%clk 00:19:05]}
{[%emt 00:01:32]} 36. Nxb7 {[%clk 00:16:04]} {[%emt 00:02:12]} Bxb7 {[%clk
00:19:14]} 37. Bd1 {[%clk 00:09:43]} {[%emt 00:06:31]} Kd6 {[%clk 00:17:31]}
{[%emt 00:01:52]} 38. Bg4 {[%clk 00:08:49]} {[%emt 00:01:04]} Kc5 {[%clk
00:16:17]} {[%emt 00:01:25]} 39. Kc2 {[%clk 00:07:49]} {[%emt 00:01:10]} Ba6
{[%clk 00:15:47]} {[%emt 00:00:40]} 40. Be2 {[%clk 00:07:38]} {[%emt 00:00:20]}
Bc8 {[%clk 00:15:20]} {[%emt 00:00:36]} 41. g4 {[%clk 00:05:21]} {[%emt
00:02:27]} Bd7 {[%clk 00:14:10]} {[%emt 00:01:20]} 42. Kb3 {[%clk 00:05:14]}
{[%emt 00:00:17]} Be8 {[%clk 00:12:30]} {[%emt 00:01:49]} 43. Bf3 {[%clk
00:04:47]} {[%emt 00:00:37]} Bg6 {[%clk 00:12:03]} {[%emt 00:00:37]} 44. Kc3
{[%clk 00:04:36]} {[%emt 00:00:22]} Bh7 {[%clk 00:11:31]} {[%emt 00:00:42]} 45.
Kb3 {[%clk 00:04:28]} {[%emt 00:00:19]} Bg6 {[%clk 00:09:21]} {[%emt 00:02:20]}
46. Kc3 {[%clk 00:03:59]} {[%emt 00:00:39]} Be8 {[%clk 00:09:23]} {[%emt
00:00:07]} 47. Kb3 {[%clk 00:03:47]} {[%emt 00:00:22]} Bd7 {[%clk 00:09:07]}
{[%emt 00:00:26]} 48. Bd1 {[%clk 00:03:18]} {[%emt 00:00:39]} g6 {[%clk
00:06:47]} {[%emt 00:02:30]} 49. h4 {[%clk 00:00:49]} {[%emt 00:02:39]} f5
{[%clk 00:05:10]} {[%emt 00:01:47]} 50. exf5 {[%clk 00:00:37]} {[%emt
00:00:23]} gxf5 {[%clk 00:05:10]} {[%emt 00:00:09]} 51. g5 {[%clk 00:00:44]}
{[%emt 00:00:02]} hxg5 {[%clk 00:04:45]} {[%emt 00:00:35]} 52. hxg5 {[%clk
00:00:36]} {[%emt 00:00:18]} Kxd5 {[%clk 00:03:30]} {[%emt 00:01:25]} 53. Bf3+
{[%clk 00:00:38]} {[%emt 00:00:08]} Ke6 {[%clk 00:03:22]} {[%emt 00:00:18]} 54.
Bh5 {[%clk 00:00:33]} {[%emt 00:00:15]} Ke7 {[%clk 00:02:56]} {[%emt 00:00:36]}
55. Kc3 {[%clk 00:00:30]} {[%emt 00:00:13]} Kf8 {[%clk 00:02:25]} {[%emt
00:00:41]} 56. Kd3 {[%clk 00:00:32]} {[%emt 00:00:08]} Kg7 {[%clk 00:02:09]}
{[%emt 00:00:26]} 57. Kc3 {[%clk 00:00:37]} {[%emt 00:00:05]} Kf8 {[%clk
00:01:42]} {[%emt 00:00:36]} 58. Kd3 {[%clk 00:00:41]} {[%emt 00:00:07]} Be8
{[%clk 00:01:34]} {[%emt 00:00:19]} 59. Bd1 {[%clk 00:00:25]} {[%emt 00:00:25]}
Kg7 {[%clk 00:01:36]} {[%emt 00:00:08]} 60. a4 {[%clk 00:00:21]} {[%emt
00:00:15]} bxa4 {[%clk 00:01:19]} {[%emt 00:00:26]} 61. Kc4 {[%clk 00:00:26]}
{[%emt 00:00:05]} Bf7+ {[%clk 00:01:21]} {[%emt 00:00:08]} 62. Kc3 {[%clk
00:00:26]} {[%emt 00:00:11]} a3 {[%clk 00:01:23]} {[%emt 00:00:07]} 63. Be2
{[%clk 00:00:15]} {[%emt 00:00:21]} a2 {[%clk 00:01:27]} {[%emt 00:00:07]} 64.
Kb2 {[%clk 00:00:23]} {[%emt 00:00:02]} Kg6 {[%clk 00:01:26]} {[%emt 00:00:10]}
65. Bf3 {[%clk 00:00:28]} {[%emt 00:00:05]} Kxg5 {[%clk 00:01:31]} {[%emt
00:00:05]} 66. Bg2 {[%clk 00:00:31]} {[%emt 00:00:07]} Kh4 {[%clk 00:01:30]}
{[%emt 00:00:10]} 67. Bc6 {[%clk 00:00:24]} {[%emt 00:00:17]} Be6 {[%clk
00:01:26]} {[%emt 00:00:14]} 68. Bb7 {[%clk 00:00:22]} {[%emt 00:00:13]} Kg3
{[%clk 00:01:30]} {[%emt 00:00:05]} 69. Bc6 {[%clk 00:00:28]} {[%emt 00:00:04]}
Kf2 {[%clk 00:01:34]} {[%emt 00:00:06]} 70. e4 {[%clk 00:00:35]} {[%emt
00:00:03]} f4 {[%clk 00:01:40]} {[%emt 00:00:04]} 71. Bb5 {[%clk 00:00:32]}
{[%emt 00:00:13]} Ke3 {[%clk 00:01:40]} {[%emt 00:00:09]} 72. Bf1 {[%clk
00:00:39]} {[%emt 00:00:04]} Kxe4 {[%clk 00:01:46]} {[%emt 00:00:04]} 73. Be2
{[%clk 00:00:45]} {[%emt 00:00:04]} f3 {[%clk 00:01:51]} {[%emt 00:00:04]} 74.
Bf1 {[%clk 00:00:53]} {[%emt 00:00:02]} Ke3 {[%clk 00:01:58]} {[%emt 00:00:03]}
75. Bb5 {[%clk 00:00:58]} {[%emt 00:00:05]} Kd2 {[%clk 00:01:59]} {[%emt
00:00:09]} 76. Bf1 {[%clk 00:01:03]} {[%emt 00:00:05]} e4 {[%clk 00:01:59]}
{[%emt 00:00:10]} 77. Bb5 {[%clk 00:01:02]} {[%emt 00:00:12]} e3 {[%clk
00:02:03]} {[%emt 00:00:05]} 78. Bf1 {[%clk 00:01:09]} {[%emt 00:00:03]} e2
{[%clk 00:02:05]} {[%emt 00:00:08]} 79. Bxe2 {[%clk 00:01:09]} {[%emt
00:00:10]} fxe2 {[%clk 00:02:07]} {[%emt 00:00:08]} 80. Ka1 {[%clk 00:01:07]}
{[%emt 00:00:12]} e1=Q+ {[%clk 00:02:08]} {[%emt 00:00:09]} 81. Kb2 {[%clk
00:01:13]} {[%emt 00:00:04]} a1=Q# {[%clk 00:01:56]} {[%emt 00:00:11]} 0-1

[Event "NK ABC Kwalificatie 2"]
[Site "Zoetermeer, Netherlands"]
[Date "2025.01.04"]
[Round "3.7"]
[White "Gupta, Akul"]
[Black "Okita, Shinsaku"]
[Result "1/2-1/2"]
[TimeControl "55+10"]
[WhiteFideId "8925180"]
[BlackFideId "8910748"]
[WhiteElo "1964"]
[BlackElo "1873"]

1. d4 {[%clk 00:55:13]} {[%emt 00:00:06]} d5 {[%clk 00:55:18]} {[%emt
00:00:03]} 2. Nc3 {[%clk 00:55:09]} {[%emt 00:00:13]} Bf5 {[%clk 00:55:08]}
{[%emt 00:00:21]} 3. f3 {[%clk 00:55:12]} {[%emt 00:00:07]} Nf6 {[%clk
00:54:53]} {[%emt 00:00:25]} 4. Bf4 {[%clk 00:54:47]} {[%emt 00:00:33]} c6
{[%clk 00:54:52]} {[%emt 00:00:13]} 5. e3 {[%clk 00:54:53]} {[%emt 00:00:04]}
Nbd7 {[%clk 00:54:09]} {[%emt 00:00:53]} 6. Qd2 {[%clk 00:54:31]} {[%emt
00:00:30]} e6 {[%clk 00:54:02]} {[%emt 00:00:19]} 7. g4 {[%clk 00:54:30]}
{[%emt 00:00:11]} Bg6 {[%clk 00:54:03]} {[%emt 00:00:08]} 8. h4 {[%clk
00:54:36]} {[%emt 00:00:04]} h5 {[%clk 00:53:45]} {[%emt 00:00:29]} 9. g5
{[%clk 00:54:38]} {[%emt 00:00:07]} Ng8 {[%clk 00:53:48]} {[%emt 00:00:07]} 10.
Bd3 {[%clk 00:53:46]} {[%emt 00:01:01]} Bb4 {[%clk 00:52:05]} {[%emt 00:01:54]}
11. Bxg6 {[%clk 00:52:34]} {[%emt 00:01:21]} fxg6 {[%clk 00:52:11]} {[%emt
00:00:05]} 12. Qd3 {[%clk 00:51:57]} {[%emt 00:00:47]} Ne7 {[%clk 00:52:10]}
{[%emt 00:00:11]} 13. Nge2 {[%clk 00:50:49]} {[%emt 00:01:18]} Nb6 {[%clk
00:49:39]} {[%emt 00:02:41]} 14. Be5 {[%clk 00:50:15]} {[%emt 00:00:43]} Kf7
{[%clk 00:48:38]} {[%emt 00:01:12]} 15. Nf4 {[%clk 00:50:12]} {[%emt 00:00:12]}
Nc4 {[%clk 00:48:17]} {[%emt 00:00:33]} 16. O-O-O {[%clk 00:48:12]} {[%emt
00:02:09]} Nxe5 {[%clk 00:47:30]} {[%emt 00:00:58]} 17. dxe5 {[%clk 00:47:55]}
{[%emt 00:00:27]} Qc7 {[%clk 00:46:55]} {[%emt 00:00:45]} 18. Qd4 {[%clk
00:46:37]} {[%emt 00:01:28]} Ba5 {[%clk 00:45:36]} {[%emt 00:01:29]} 19. Na4
{[%clk 00:44:05]} {[%emt 00:02:42]} Nf5 {[%clk 00:45:17]} {[%emt 00:00:29]} 20.
Qc5 {[%clk 00:43:06]} {[%emt 00:01:02]} Bb6 {[%clk 00:45:01]} {[%emt 00:00:35]}
21. Nxb6 {[%clk 00:40:53]} {[%emt 00:02:23]} axb6 {[%clk 00:45:01]} {[%emt
00:00:09]} 22. Qc3 {[%clk 00:40:56]} {[%emt 00:00:06]} Rxa2 {[%clk 00:44:26]}
{[%emt 00:00:46]} 23. e4 {[%clk 00:39:53]} {[%emt 00:01:12]} d4 {[%clk
00:41:34]} {[%emt 00:03:03]} 24. Qb3 {[%clk 00:32:32]} {[%emt 00:07:31]} Ra1+
{[%clk 00:41:36]} {[%emt 00:00:08]} 25. Kd2 {[%clk 00:32:36]} {[%emt 00:00:05]}
Rxd1+ {[%clk 00:41:03]} {[%emt 00:00:44]} 26. Rf1 {[%emt 00:00:39]} Re1 27.
Rxe1 {[%clk 00:32:06]} Qxe5 {[%clk 00:41:05]} {[%emt 00:00:08]} 28. Rd1 {[%clk
00:32:09]} Qa5+ {[%clk 00:39:48]} {[%emt 00:01:35]} 29. Nd3 {[%clk 00:26:55]}
1/2-1/2

[Event "NK ABC Kwalificatie 2"]
[Site "Zoetermeer, Netherlands"]
[Date "2025.01.04"]
[Round "3.8"]
[White "Wacht, Florian"]
[Black "Pathak, Raghav"]
[Result "0-1"]
[TimeControl "55+10"]
[WhiteFideId "8823034"]
[BlackFideId "8923849"]
[WhiteElo "1818"]
[BlackElo "1926"]

1. e4 {[%clk 00:55:18]} {[%emt 00:00:01]} c6 {[%clk 00:55:02]} {[%emt
00:00:19]} 2. d4 {[%clk 00:55:14]} {[%emt 00:00:14]} d5 {[%clk 00:55:09]}
{[%emt 00:00:04]} 3. Nc3 {[%clk 00:55:13]} {[%emt 00:00:11]} dxe4 {[%clk
00:55:13]} {[%emt 00:00:05]} 4. Nxe4 {[%clk 00:55:15]} {[%emt 00:00:09]} Nf6
{[%clk 00:55:20]} {[%emt 00:00:03]} 5. Nxf6+ {[%clk 00:55:14]} {[%emt
00:00:10]} exf6 {[%clk 00:55:26]} {[%emt 00:00:05]} 6. Bc4 {[%clk 00:53:38]}
{[%emt 00:01:46]} Bd6 {[%clk 00:55:26]} {[%emt 00:00:10]} 7. Be3 {[%clk
00:53:05]} {[%emt 00:00:43]} O-O {[%clk 00:55:20]} {[%emt 00:00:16]} 8. Qd2
{[%clk 00:52:17]} {[%emt 00:00:58]} a5 {[%clk 00:55:17]} {[%emt 00:00:13]} 9.
a4 {[%clk 00:51:08]} {[%emt 00:01:19]} Bg4 {[%clk 00:54:53]} {[%emt 00:00:34]}
10. f3 {[%clk 00:50:05]} {[%emt 00:01:13]} Re8 {[%clk 00:54:43]} {[%emt
00:00:19]} 11. O-O-O {[%clk 00:48:56]} {[%emt 00:01:19]} Bd7 {[%clk 00:54:27]}
{[%emt 00:00:26]} 12. Ne2 {[%clk 00:47:50]} {[%emt 00:01:16]} Qc7 {[%clk
00:54:15]} {[%emt 00:00:22]} 13. Qd3 {[%clk 00:41:26]} {[%emt 00:06:33]} b5
{[%clk 00:53:48]} {[%emt 00:00:37]} 14. Bb3 {[%clk 00:40:15]} {[%emt 00:01:21]}
Na6 {[%clk 00:53:16]} {[%emt 00:00:42]} 15. Bd2 {[%clk 00:39:20]} {[%emt
00:01:05]} Nb4 {[%clk 00:52:57]} {[%emt 00:00:30]} 16. Bxb4 {[%clk 00:39:15]}
{[%emt 00:00:15]} axb4 {[%clk 00:53:00]} {[%emt 00:00:07]} 17. d5 {[%clk
00:35:10]} {[%emt 00:04:15]} bxa4 {[%clk 00:52:46]} {[%emt 00:00:23]} 18. Ba2
{[%clk 00:32:33]} {[%emt 00:02:48]} b3 {[%clk 00:52:23]} {[%emt 00:00:33]} 19.
Bb1 {[%clk 00:32:01]} {[%emt 00:00:41]} Bf5 {[%clk 00:49:52]} {[%emt 00:02:41]}
20. Qxf5 {[%clk 00:31:16]} {[%emt 00:00:56]} Rxe2 {[%clk 00:49:53]} {[%emt
00:00:09]} 21. g3 {[%clk 00:30:29]} {[%emt 00:00:57]} a3 {[%clk 00:49:04]}
{[%emt 00:00:58]} 22. Qd3 {[%clk 00:27:12]} {[%emt 00:03:27]} axb2+ {[%clk
00:48:52]} {[%emt 00:00:22]} 23. Kxb2 {[%clk 00:27:15]} {[%emt 00:00:08]} Be5+
{[%clk 00:48:52]} {[%emt 00:00:10]} 24. Kxb3 {[%clk 00:26:42]} {[%emt
00:00:43]} Qb6+ {[%clk 00:48:55]} {[%emt 00:00:07]} 0-1

[Event "NK ABC Kwalificatie 2"]
[Site "Zoetermeer, Netherlands"]
[Date "2025.01.04"]
[Round "3.9"]
[White "Kakrana, Reyansh"]
[Black "Etienne, Ghilon"]
[Result "0-1"]
[TimeControl "55+10"]
[WhiteFideId "8853900"]
[BlackFideId "8852118"]
[WhiteElo "1813"]
[BlackElo "1901"]

1. e4 {[%clk 00:55:18]} {[%emt 00:00:02]} e5 {[%clk 00:55:16]} {[%emt
00:00:04]} 2. Nc3 {[%clk 00:55:24]} {[%emt 00:00:04]} Nc6 {[%clk 00:55:16]}
{[%emt 00:00:10]} 3. Bc4 {[%clk 00:55:29]} {[%emt 00:00:05]} Nf6 {[%clk
00:55:21]} {[%emt 00:00:05]} 4. d3 {[%clk 00:55:29]} {[%emt 00:00:10]} Bc5
{[%clk 00:55:27]} {[%emt 00:00:05]} 5. f4 {[%clk 00:47:04]} {[%emt 00:08:34]}
d6 {[%clk 00:55:22]} {[%emt 00:00:14]} 6. Nf3 {[%clk 00:42:54]} {[%emt
00:04:21]} a6 {[%clk 00:54:53]} {[%emt 00:00:39]} 7. Nd5 {[%clk 00:33:40]}
{[%emt 00:09:24]} Bg4 {[%clk 00:53:18]} {[%emt 00:01:44]} 8. c3 {[%clk
00:32:47]} {[%emt 00:01:04]} O-O {[%clk 00:50:07]} {[%emt 00:03:21]} 9. Qe2
{[%clk 00:29:09]} {[%emt 00:03:48]} Re8 {[%clk 00:47:50]} {[%emt 00:02:26]} 10.
Be3 {[%clk 00:27:43]} {[%emt 00:01:37]} exf4 {[%clk 00:41:12]} {[%emt
00:06:49]} 11. Nxf6+ {[%clk 00:17:13]} {[%emt 00:10:40]} Qxf6 {[%clk 00:41:09]}
{[%emt 00:00:12]} 12. Bxc5 {[%clk 00:17:12]} {[%emt 00:00:11]} dxc5 {[%clk
00:41:13]} {[%emt 00:00:06]} 13. O-O {[%clk 00:17:07]} {[%emt 00:00:15]} Ne5
{[%clk 00:40:00]} {[%emt 00:01:23]} 14. Bb3 {[%clk 00:16:57]} {[%emt 00:00:20]}
Qb6 {[%clk 00:25:01]} {[%emt 00:15:09]} 15. Kh1 {[%clk 00:15:28]} {[%emt
00:01:39]} a5 {[%clk 00:24:25]} {[%emt 00:00:47]} 16. Rab1 {[%clk 00:11:08]}
{[%emt 00:04:30]} Red8 {[%clk 00:22:06]} {[%emt 00:02:28]} 17. Bc2 {[%clk
00:07:36]} {[%emt 00:03:42]} Qb5 {[%clk 00:20:46]} {[%emt 00:01:30]} 18. Rfd1
{[%clk 00:06:27]} {[%emt 00:01:20]} Rd6 {[%clk 00:19:28]} {[%emt 00:01:27]} 19.
a4 {[%clk 00:05:38]} {[%emt 00:01:00]} Qd7 {[%clk 00:17:36]} {[%emt 00:02:02]}
20. Rd2 {[%clk 00:05:07]} {[%emt 00:00:41]} Bxf3 {[%clk 00:17:33]} {[%emt
00:00:13]} 21. gxf3 {[%clk 00:05:01]} {[%emt 00:00:15]} Rd8 {[%clk 00:17:22]}
{[%emt 00:00:21]} 22. Rbd1 {[%clk 00:05:01]} {[%emt 00:00:11]} Nc4 {[%clk
00:15:59]} {[%emt 00:01:34]} 23. e5 {[%clk 00:03:12]} {[%emt 00:01:59]} Rd5
{[%clk 00:16:01]} {[%emt 00:00:08]} 24. Bb3 {[%clk 00:02:34]} {[%emt 00:00:47]}
Nxd2 {[%clk 00:16:05]} {[%emt 00:00:05]} 25. Bxd5 {[%clk 00:02:31]} {[%emt
00:00:14]} Qxd5 {[%clk 00:16:05]} {[%emt 00:00:10]} 26. Rxd2 {[%clk 00:02:30]}
{[%emt 00:00:11]} Re8 {[%clk 00:15:50]} {[%emt 00:00:25]} 27. Qe4 {[%clk
00:01:54]} {[%emt 00:00:47]} Qxe5 {[%clk 00:15:39]} {[%emt 00:00:20]} 28. Qxe5
{[%clk 00:01:33]} {[%emt 00:00:32]} Rxe5 {[%clk 00:15:48]} {[%emt 00:00:01]} 29.
Kg2 {[%clk 00:01:22]} {[%emt 00:00:20]} f6 {[%clk 00:15:37]} {[%emt 00:00:20]}
30. Kf2 {[%clk 00:01:18]} {[%emt 00:00:14]} Kf7 {[%clk 00:15:37]} {[%emt
00:00:10]} 31. Rc2 {[%clk 00:00:39]} {[%emt 00:00:50]} Rd5 {[%clk 00:15:00]}
{[%emt 00:00:47]} 32. d4 {[%clk 00:00:23]} {[%emt 00:00:26]} cxd4 {[%clk
00:14:05]} {[%emt 00:01:04]} 33. cxd4 {[%clk 00:00:32]} {[%emt 00:00:01]} c6
{[%clk 00:14:08]} {[%emt 00:00:07]} 34. Rc4 {[%clk 00:00:36]} {[%emt 00:00:06]}
Ke6 {[%clk 00:12:59]} {[%emt 00:01:20]} 35. Ke2 {[%clk 00:00:16]} {[%emt
00:00:31]} Rh5 {[%clk 00:12:55]} {[%emt 00:00:13]} 36. Kd3 {[%clk 00:00:11]}
{[%emt 00:00:15]} Rxh2 {[%clk 00:12:49]} {[%emt 00:00:16]} 37. b4 {[%clk
00:00:21]} Rh5 {[%clk 00:11:48]} {[%emt 00:01:11]} 38. Ke4 {[%clk 00:00:19]}
{[%emt 00:00:12]} Rf5 {[%clk 00:10:07]} {[%emt 00:01:50]} 39. bxa5 {[%clk
00:00:11]} {[%emt 00:00:19]} Rxa5 {[%clk 00:10:11]} {[%emt 00:00:05]} 40. Kxf4
{[%clk 00:00:19]} {[%emt 00:00:02]} Kd5 {[%clk 00:10:13]} {[%emt 00:00:08]} 41.
Rb4 {[%clk 00:00:15]} {[%emt 00:00:14]} b5 {[%clk 00:10:12]} {[%emt 00:00:11]}
42. axb5 {[%clk 00:00:23]} {[%emt 00:00:02]} Rxb5 {[%clk 00:10:17]} {[%emt
00:00:06]} 43. Ra4 {[%clk 00:00:31]} {[%emt 00:00:02]} Rb7 {[%clk 00:09:37]}
{[%emt 00:00:49]} 44. Ke3 {[%clk 00:00:13]} {[%emt 00:00:29]} Rb3+ {[%clk
00:09:42]} {[%emt 00:00:05]} 45. Kf4 {[%clk 00:00:22]} Rd3 {[%clk 00:09:44]}
{[%emt 00:00:07]} 46. Ra7 {[%clk 00:00:26]} {[%emt 00:00:06]} Rxd4+ {[%clk
00:09:34]} {[%emt 00:00:20]} 47. Ke3 {[%clk 00:00:33]} {[%emt 00:00:04]} Rh4
{[%clk 00:08:35]} {[%emt 00:01:09]} 48. Rxg7 {[%clk 00:00:24]} {[%emt
00:00:19]} Kc4 {[%clk 00:08:28]} {[%emt 00:00:16]} 49. Rf7 {[%clk 00:00:26]}
{[%emt 00:00:09]} Rh6 {[%clk 00:08:31]} {[%emt 00:00:06]} 50. Kd2 {[%clk
00:00:11]} {[%emt 00:00:25]} c5 {[%clk 00:08:26]} {[%emt 00:00:16]} 51. Re7
{[%clk 00:00:14]} {[%emt 00:00:07]} Rh3 {[%clk 00:08:14]} {[%emt 00:00:22]} 52.
Re3 {[%clk 00:00:11]} {[%emt 00:00:12]} f5 {[%clk 00:07:59]} {[%emt 00:00:25]}
53. Rc3+ {[%clk 00:00:11]} {[%emt 00:00:11]} Kb4 {[%clk 00:07:57]} {[%emt
00:00:11]} 54. Rd3 {[%clk 00:00:11]} {[%emt 00:00:11]} c4 {[%clk 00:07:59]}
{[%emt 00:00:08]} 55. Rd7 {[%clk 00:00:18]} {[%emt 00:00:04]} Rh2+ {[%clk
00:07:30]} {[%emt 00:00:38]} 56. Ke3 {[%clk 00:00:14]} {[%emt 00:00:13]} Kc3
{[%clk 00:07:35]} {[%emt 00:00:05]} 57. Rd5 {[%clk 00:00:12]} {[%emt 00:00:13]}
Rh5 {[%clk 00:07:16]} {[%emt 00:00:27]} 58. Rd2 {[%clk 00:00:20]} {[%emt
00:00:02]} Kb3 {[%clk 00:07:16]} {[%emt 00:00:11]} 59. Rd7 {[%clk 00:00:19]}
{[%emt 00:00:11]} Kc2 {[%clk 00:06:49]} {[%emt 00:00:37]} 60. Rd2+ {[%clk
00:00:22]} {[%emt 00:00:07]} Kc1 {[%clk 00:06:28]} {[%emt 00:00:31]} 61. Kd4
{[%clk 00:00:13]} {[%emt 00:00:20]} Kxd2 {[%clk 00:06:29]} {[%emt 00:00:08]} 62.
Kxc4 {[%clk 00:00:22]} {[%emt 00:00:01]} Ke3 {[%clk 00:06:29]} {[%emt
00:00:10]} 63. Kc3 {[%clk 00:00:31]} Rh4 {[%clk 00:06:32]} {[%emt 00:00:07]} 64.
Kc2 {[%clk 00:00:39]} {[%emt 00:00:01]} Rd4 {[%clk 00:06:34]} {[%emt 00:00:08]}
65. f4 {[%clk 00:00:48]} {[%emt 00:00:02]} Rd3 {[%clk 00:06:38]} {[%emt
00:00:06]} 66. Kb2 {[%clk 00:00:56]} {[%emt 00:00:02]} Kd2 {[%clk 00:06:41]}
{[%emt 00:00:07]} 67. Kb1 {[%clk 00:01:04]} {[%emt 00:00:03]} Rb3+ {[%clk
00:06:44]} {[%emt 00:00:06]} 68. Ka2 {[%clk 00:01:13]} {[%emt 00:00:01]} Kc2
{[%clk 00:06:45]} {[%emt 00:00:10]} 69. Ka1 {[%clk 00:01:22]} Ra3# {[%clk
00:06:44]} {[%emt 00:00:11]} 0-1